Workbook

Sheet 2
T1: T | U1: Fase 1 | V1: Fase 2 | W1: Fase 3
T2: =C14 -> 100 | U2: =C11 -> 5 | V2: =C12 -> 61.9
T3: =C14 -> 100 | U3: =C11 -> 5 | W3: =C13 -> 98.65
T4: =C14 -> 100 | V4: =C12 -> 61.9 | W4: =C13 -> 98.65
T5: x | U5: x | V5: x | W5: x
T6: T | U6: Fase 1 | V6: Fase 2 | W6: Fase 3 | X6: Fase 1 | Y6: Fase 2 | Z6: Fase 1 | AA6: Fase 3 | AB6: Fase 2 | AC6: Fase 3 | AD6: T | AE6: Fase 1 | AF6: Fase 2 | AG6: Fase 3 | AH6: =AD6 -> T | AI6: =AE6 -> Fase 1 | AJ6: =AF6 -> Fase 2 | AK6: =AG6 -> Fase 3 | AL6: tempo | AM6: =AI6 -> Fase 1 | AN6: Fase 2 | AO6: Fase 3
T7: 1400 | U7: 40.90909091 | W7: 83.33333333 | X7: =(V7-$C$10)/(V7-U7) -> 1.1 | Y7: =1-X7 -> -0.1 | Z7: =(W7-$C$10)/(W7-U7) -> 0.9035714286 | AA7: =1-Z7 -> 0.09642857143 | AB7: =(W7-$C$10)/(W7-V7) -> 0.46 | AC7: =1-AB7 -> 0.54 | AD7: =T7 -> 1400 | AE7: =IF(ISBLANK(W7),X7,IF(ISBLANK(V7),Z7,0)) -> 0.9035714286 | AF7: =IF(ISBLANK(U7),AB7,IF(ISBLANK(W7),Y7,0)) -> 0 | AG7: =IF(ISBLANK(U7),AC7,IF(ISBLANK(V7),AA7,0)) -> 0.09642857143 | AH7: =AD7 -> 1400 | AI7: =IF(AE7<0,0,IF(AE7>1,1,AE7)) -> 0.9035714286 | AJ7: =IF(AF7<0,0,IF(AF7>1,1,AF7)) -> 0 | AK7: =IF(AG7<0,0,IF(AG7>1,1,AG7)) -> 0.09642857143 | AL7: 2 | AM7: 0.9035714286 | AN7: 0 | AO7: 0.09642857143
T8: 1300 | U8: 33.33333333 | W8: 80.3030303 | X8: =(V8-$C$10)/(V8-U8) -> 1.35 | Y8: =1-X8 -> -0.35 | Z8: =(W8-$C$10)/(W8-U8) -> 0.7516129032 | AA8: =1-Z8 -> 0.2483870968 | AB8: =(W8-$C$10)/(W8-V8) -> 0.4396226415 | AC8: =1-AB8 -> 0.5603773585 | AD8: =T8 -> 1300 | AE8: =IF(ISBLANK(W8),X8,IF(ISBLANK(V8),Z8,0)) -> 0.7516129032 | AF8: =IF(ISBLANK(U8),AB8,IF(ISBLANK(W8),Y8,0)) -> 0 | AG8: =IF(ISBLANK(U8),AC8,IF(ISBLANK(V8),AA8,0)) -> 0.2483870968 | AH8: 1300 | AI8: =IF(AE8<0,0,IF(AE8>1,1,AE8)) -> 0.7516129032 | AJ8: 0 | AK8: 0.2483870968 | AL8: 3 | AM8: 0.7516129032 | AN8: 0 | AO8: 0.2483870968
T9: 1200 | U9: 25.75757576 | W9: 76.51515152 | X9: =(V9-$C$10)/(V9-U9) -> 1.747058824 | Y9: -0.7470588235 | Z9: =(W9-$C$10)/(W9-U9) -> 0.6208955224 | AA9: 0.3791044776 | AB9: =(W9-$C$10)/(W9-V9) -> 0.4118811881 | AC9: 0.5881188119 | AD9: 1200 | AE9: 0.6208955224 | AF9: 0 | AG9: 0.3791044776 | AH9: 1200 | AI9: 0.6208955224 | AJ9: 0 | AK9: 0.3791044776 | AL9: 4 | AM9: 0.6208955224 | AN9: 0 | AO9: 0.3791044776
B10: LIGA | C10: 45 | D10: %B | T10: 1198 | U10: 25 | W10: 75.75757576 | X10: =(V10-$C$10)/(V10-U10) -> 1.8 | Y10: -0.8 | Z10: =(W10-$C$10)/(W10-U10) -> 0.6059701493 | AA10: 0.3940298507 | AB10: =(W10-$C$10)/(W10-V10) -> 0.406 | AC10: 0.594 | AD10: 1198 | AE10: 0.6059701493 | AF10: 0 | AG10: 0.3940298507 | AH10: 1198 | AI10: 0.6059701493 | AJ10: 0 | AK10: 0.3940298507 | AL10: 5 | AM10: 0.6059701493 | AN10: 0 | AO10: 0.3940298507
B11: FASE 1 | C11: 5 | D11: %B | T11: 1198 | V11: 40.90909091 | W11: 75.75757576 | X11: -0.1 | Y11: 1.1 | Z11: 0.406 | AA11: 0.594 | AB11: 0.8826086957 | AC11: 0.1173913043 | AD11: 1198 | AE11: 0 | AF11: 0.8826086957 | AG11: 0.1173913043 | AH11: 1198 | AI11: 0 | AJ11: 0.8826086957 | AK11: 0.1173913043 | AL11: 20 | AM11: 0 | AN11: 0.8826086957 | AO11: 0.1173913043
B12: FASE 2 | C12: 61.9 | D12: %B | T12: 1100 | V12: 35.60606061 | W12: 82.57575758 | X12: -0.2638297872 | Y12: 1.263829787 | Z12: 0.4550458716 | AA12: 0.5449541284 | AB12: 0.8 | AC12: 0.2 | AD12: 1100 | AE12: 0 | AF12: 0.8 | AG12: 0.2 | AH12: 1100 | AI12: 0 | AJ12: 0.8 | AK12: 0.2 | AL12: 21 | AM12: 0 | AN12: 0.8 | AO12: 0.2
B13: FASE 3 | C13: 98.65 | D13: %B | T13: 1000 | V13: 30.3030303 | W13: 87.12121212 | X13: -0.485 | Y13: 1.485 | Z13: 0.4834782609 | AA13: 0.5165217391 | AB13: 0.7413333333 | AC13: 0.2586666667 | AD13: 1000 | AE13: 0 | AF13: 0.7413333333 | AG13: 0.2586666667 | AH13: 1000 | AI13: 0 | AJ13: 0.7413333333 | AK13: 0.2586666667 | AL13: 22 | AM13: 0 | AN13: 0.7413333333 | AO13: 0.2586666667
B14: T | C14: 100 | D14: graus | AD14: 0
AD15: 0
D16: =C$12 -> 61.9 | E16: - | F16: =C$10 -> 45 | L16: =C$10 -> 45 | M16: - | N16: =C$11 -> 5 | AD16: 0
B17: fração 1 (com 2) | C17: = | G17: = | H17: =(D16-F16)/(D18-F18) -> 0.2970123023 | J17: fração 2 | K17: = | O17: = | P17: =(L16-N16)/(L18-N18) -> 0.7029876977 | Q17: =H17+P17 -> 1 | AD17: 0
D18: =C$12 -> 61.9 | E18: - | F18: =C$11 -> 5 | L18: =C$12 -> 61.9 | M18: - | N18: =C$11 -> 5
D20: =C$13 -> 98.65 | E20: - | F20: =C$10 -> 45 | L20: =C$10 -> 45 | M20: - | N20: =C$11 -> 5
B21: fração 1 (com 3) | C21: = | G21: = | H21: =(D20-F20)/(D22-F22) -> 0.5728777363 | J21: fração 3 | K21: = | O21: = | P21: =(L20-N20)/(L22-N22) -> 0.4271222637 | Q21: =H21+P21 -> 1
D22: =C$13 -> 98.65 | E22: - | F22: =C$11 -> 5 | L22: =C$13 -> 98.65 | M22: - | N22: =C$11 -> 5
D24: =$C$13 -> 98.65 | E24: - | F24: =$C$10 -> 45 | L24: =$C$10 -> 45 | M24: - | N24: =C$12 -> 61.9
B25: fração 2 (com 3) | C25: = | G25: = | H25: =(D24-F24)/(D26-F26) -> 1.459863946 | J25: fração 3 | K25: = | O25: = | P25: =(L24-N24)/(L26-N26) -> -0.4598639456 | Q25: =H25+P25 -> 1
D26: =$C$13 -> 98.65 | E26: - | F26: =$C$12 -> 61.9 | L26: =$C$13 -> 98.65 | M26: - | N26: =$C$12 -> 61.9
I29: AO APERTAR UM DOS BOTÕES, OS DADOS SÃO SALVOS EM NOVA LINHA AMARELA
I31: OS BOTÕES SÓ FUNCIONAM SE VOCÊ HABILITAR MACROS (aparece solicitação ao abrir a planilha)
AS32: 1400 | AT32: 54 | AV32: 110 | AX32: =AT32/1.32 -> 40.90909091 | AY32: =AU32/1.32 -> 0 | AZ32: 83.33333333
I33: ALTERAR APENAS OS VALORES NAS CÉLULAS VERDES E AS FAIXAS NOS GRÁFICOS - O RESTO É AUTOMÁTICO | AS33: 1300 | AT33: 44 | AV33: 106 | AX33: =AT33/1.32 -> 33.33333333 | AY33: =AU33/1.32 -> 0 | AZ33: =AV33/1.32 -> 80.3030303
AS34: 1200 | AT34: 34 | AV34: 101 | AX34: 25.75757576 | AY34: 0 | AZ34: 76.51515152
I35: A ESCALA DE TEMPO (COLUNA "AL") É ARBITRÁRIA | AS35: 1198 | AT35: 33 | AV35: 100 | AX35: 25 | AY35: 0 | AZ35: 75.75757576
AS36: 1198 | AU36: 54 | AV36: 100 | AX36: 0 | AY36: 40.90909091 | AZ36: 75.75757576
AS37: 1100 | AU37: 47 | AV37: 109 | AX37: 0 | AY37: 35.60606061 | AZ37: 82.57575758
AS38: 1000 | AU38: 40 | AV38: 115 | AX38: 0 | AY38: 30.3030303 | AZ38: 87.12121212
AS39: 700
AS40: 600
AS41: 500
AS42: 400
AS43: 300
AS44: 200
AS45: 100
AS46: 0
AS47: -100
AS48: -200

Sheet 1
T1: T | U1: Fase 1 | V1: Fase 2 | W1: Fase 3
T2: =C14 -> 100 | U2: =C11 -> 5 | V2: =C12 -> 61.9
T3: =C14 -> 100 | U3: =C11 -> 5 | W3: =C13 -> 98.65
T4: =C14 -> 100 | V4: =C12 -> 61.9 | W4: =C13 -> 98.65
T5: x | U5: x | V5: x | W5: x
T6: T | U6: Fase 1 | V6: Fase 2 | W6: Fase 3 | X6: Fase 1 | Y6: Fase 2 | Z6: Fase 1 | AA6: Fase 3 | AB6: Fase 2 | AC6: Fase 3 | AD6: T | AE6: Fase 1 | AF6: Fase 2 | AG6: Fase 3 | AH6: =AD6 -> T | AI6: =AE6 -> Fase 1 | AJ6: =AF6 -> Fase 2 | AK6: =AG6 -> Fase 3 | AL6: tempo | AM6: =AI6 -> Fase 1 | AN6: Fase 2 | AO6: Fase 3
T7: 300 | U7: 6.7 | V7: 10.3 | X7: =(V7-$C$10)/(V7-U7) -> -14.33333333 | Y7: =1-X7 -> 15.33333333 | Z7: =(W7-$C$10)/(W7-U7) -> 9.23880597 | AA7: =1-Z7 -> -8.23880597 | AB7: =(W7-$C$10)/(W7-V7) -> 6.009708738 | AC7: =1-AB7 -> -5.009708738 | AD7: =T7 -> 300 | AE7: =IF(ISBLANK(W7),X7,IF(ISBLANK(V7),Z7,0)) -> -14.33333333 | AF7: =IF(ISBLANK(U7),AB7,IF(ISBLANK(W7),Y7,0)) -> 15.33333333 | AG7: =IF(ISBLANK(U7),AC7,IF(ISBLANK(V7),AA7,0)) -> 0 | AH7: =AD7 -> 300 | AI7: =IF(AE7<0,0,IF(AE7>1,1,AE7)) -> 0 | AJ7: =IF(AF7<0,0,IF(AF7>1,1,AF7)) -> 1 | AK7: =IF(AG7<0,0,IF(AG7>1,1,AG7)) -> 0 | AL7: 0 | AM7: 0 | AN7: 1 | AO7: 0
T8: 275 | U8: 10.3 | V8: 21.2 | X8: =(V8-$C$10)/(V8-U8) -> -3.733944954 | Y8: =1-X8 -> 4.733944954 | Z8: =(W8-$C$10)/(W8-U8) -> 6.009708738 | AA8: =1-Z8 -> -5.009708738 | AB8: =(W8-$C$10)/(W8-V8) -> 2.919811321 | AC8: =1-AB8 -> -1.919811321 | AD8: =T8 -> 275 | AE8: =IF(ISBLANK(W8),X8,IF(ISBLANK(V8),Z8,0)) -> -3.733944954 | AF8: =IF(ISBLANK(U8),AB8,IF(ISBLANK(W8),Y8,0)) -> 4.733944954 | AG8: =IF(ISBLANK(U8),AC8,IF(ISBLANK(V8),AA8,0)) -> 0 | AH8: 275 | AI8: =IF(AE8<0,0,IF(AE8>1,1,AE8)) -> 0 | AJ8: =IF(AF8<0,0,IF(AF8>1,1,AF8)) -> 1 | AK8: =IF(AG8<0,0,IF(AG8>1,1,AG8)) -> 0 | AL8: 1 | AM8: =AI8 -> 0 | AN8: =AJ8 -> 1 | AO8: 0
T9: 250 | U9: 13.3 | V9: 33.9 | X9: =(V9-$C$10)/(V9-U9) -> -1.359223301 | Y9: 2.359223301 | Z9: =(W9-$C$10)/(W9-U9) -> 4.654135338 | AA9: -3.654135338 | AB9: =(W9-$C$10)/(W9-V9) -> 1.825958702 | AC9: -0.8259587021 | AD9: 250 | AE9: -1.359223301 | AF9: 2.359223301 | AG9: 0 | AH9: 250 | AI9: 0 | AJ9: 1 | AK9: 0 | AL9: 2 | AM9: 0 | AN9: 1 | AO9: 0
B10: LIGA | C10: 61.9 | D10: %B | T10: 225 | U10: 15.8 | V10: 45.5 | X10: =(V10-$C$10)/(V10-U10) -> -0.5521885522 | Y10: 1.552188552 | Z10: =(W10-$C$10)/(W10-U10) -> 3.917721519 | AA10: -2.917721519 | AB10: =(W10-$C$10)/(W10-V10) -> 1.36043956 | AC10: -0.3604395604 | AD10: 225 | AE10: -0.5521885522 | AF10: 1.552188552 | AG10: 0 | AH10: 225 | AI10: 0 | AJ10: 1 | AK10: 0 | AL10: 3 | AM10: 0 | AN10: 1 | AO10: 0
B11: FASE 1 | C11: 5 | D11: %B | T11: 200 | U11: 17 | V11: 57 | X11: -0.1225 | Y11: 1.1225 | Z11: 3.641176471 | AA11: -2.641176471 | AB11: 1.085964912 | AC11: -0.08596491228 | AD11: 200 | AE11: -0.1225 | AF11: 1.1225 | AG11: 0 | AH11: 200 | AI11: 0 | AJ11: 1 | AK11: 0 | AL11: 4 | AM11: 0 | AN11: 1 | AO11: 0
B12: FASE 2 | C12: 61.9 | D12: %B | T12: 183 | U12: 18.3 | V12: 61.9 | X12: 0 | Y12: 1 | Z12: 3.382513661 | AA12: -2.382513661 | AB12: 1 | AC12: 0 | AD12: 183 | AE12: 0 | AF12: 1 | AG12: 0 | AH12: 183 | AI12: 0 | AJ12: 1 | AK12: 0 | AL12: 5 | AM12: 0 | AN12: 1 | AO12: 0
B13: FASE 3 | C13: 98.65 | D13: %B | T13: 183 | U13: 18.3 | W13: 97.8 | X13: 3.382513661 | Y13: -2.382513661 | Z13: 0.451572327 | AA13: 0.548427673 | AB13: 0.3670756646 | AC13: 0.6329243354 | AD13: 183 | AE13: 0.451572327 | AF13: 0 | AG13: 0.548427673 | AH13: 183 | AI13: 0.451572327 | AJ13: 0 | AK13: 0.548427673 | AL13: 20 | AM13: 0.451572327 | AN13: 0 | AO13: 0.548427673
B14: T | C14: 100 | D14: graus | T14: 175 | U14: 14.5 | W14: 97.6 | X14: 4.268965517 | Y14: -3.268965517 | Z14: 0.4296028881 | AA14: 0.5703971119 | AB14: 0.3657786885 | AC14: 0.6342213115 | AD14: 175 | AE14: 0.4296028881 | AF14: 0 | AG14: 0.5703971119 | AH14: 175 | AI14: 0.4296028881 | AJ14: 0 | AK14: 0.5703971119 | AL14: 21 | AM14: 0.4296028881 | AN14: 0 | AO14: 0.5703971119
T15: 150 | U15: 9.7 | W15: 98.2 | X15: 6.381443299 | Y15: -5.381443299 | Z15: 0.4101694915 | AA15: 0.5898305085 | AB15: 0.3696537678 | AC15: 0.6303462322 | AD15: 150 | AE15: 0.4101694915 | AF15: 0 | AG15: 0.5898305085 | AH15: 150 | AI15: 0.4101694915 | AJ15: 0 | AK15: 0.5898305085 | AL15: 22 | AM15: 0.4101694915 | AN15: 0 | AO15: 0.5898305085
D16: =C$12 -> 61.9 | E16: - | F16: =C$10 -> 61.9 | L16: =C$10 -> 61.9 | M16: - | N16: =C$11 -> 5 | T16: 125 | U16: 6.7 | W16: 98.8 | X16: 9.23880597 | Y16: -8.23880597 | Z16: 0.4006514658 | AA16: 0.5993485342 | AB16: 0.3734817814 | AC16: 0.6265182186 | AD16: 125 | AE16: 0.4006514658 | AF16: 0 | AG16: 0.5993485342 | AH16: 125 | AI16: 0.4006514658 | AJ16: 0 | AK16: 0.5993485342 | AL16: 23 | AM16: 0.4006514658 | AN16: 0 | AO16: 0.5993485342
B17: fração 1 (com 2) | C17: = | G17: = | H17: =(D16-F16)/(D18-F18) -> 0 | J17: fração 2 | K17: = | O17: = | P17: =(L16-N16)/(L18-N18) -> 1 | Q17: =H17+P17 -> 1 | T17: 100 | U17: 4.8 | W17: 98.8 | X17: 12.89583333 | Y17: -11.89583333 | Z17: 0.3925531915 | AA17: 0.6074468085 | AB17: 0.3734817814 | AC17: 0.6265182186 | AD17: 100 | AE17: 0.3925531915 | AF17: 0 | AG17: 0.6074468085 | AH17: 100 | AI17: 0.3925531915 | AJ17: 0 | AK17: 0.6074468085 | AL17: 24 | AM17: 0.3925531915 | AN17: 0 | AO17: 0.6074468085
D18: =C$12 -> 61.9 | E18: - | F18: =C$11 -> 5 | L18: =C$12 -> 61.9 | M18: - | N18: =C$11 -> 5
D20: =C$13 -> 98.65 | E20: - | F20: =C$10 -> 61.9 | L20: =C$10 -> 61.9 | M20: - | N20: =C$11 -> 5
B21: fração 1 (com 3) | C21: = | G21: = | H21: =(D20-F20)/(D22-F22) -> 0.3924185798 | J21: fração 3 | K21: = | O21: = | P21: =(L20-N20)/(L22-N22) -> 0.6075814202 | Q21: =H21+P21 -> 1
D22: =C$13 -> 98.65 | E22: - | F22: =C$11 -> 5 | L22: =C$13 -> 98.65 | M22: - | N22: =C$11 -> 5
D24: =$C$13 -> 98.65 | E24: - | F24: =$C$10 -> 61.9 | L24: =$C$10 -> 61.9 | M24: - | N24: =C$12 -> 61.9
B25: fração 2 (com 3) | C25: = | G25: = | H25: =(D24-F24)/(D26-F26) -> 1 | J25: fração 3 | K25: = | O25: = | P25: =(L24-N24)/(L26-N26) -> 0 | Q25: =H25+P25 -> 1
D26: =$C$13 -> 98.65 | E26: - | F26: =$C$12 -> 61.9 | L26: =$C$13 -> 98.65 | M26: - | N26: =$C$12 -> 61.9
I30: AO APERTAR UM DOS BOTÕES, OS DADOS SÃO SALVOS EM NOVA LINHA AMARELA
I32: OS BOTÕES SÓ FUNCIONAM SE VOCÊ HABILITAR MACROS (aparece solicitação ao abrir a planilha)
I34: ALTERAR APENAS OS VALORES NAS CÉLULAS VERDES E AS FAIXAS NOS GRÁFICOS - O RESTO É AUTOMÁTICO
I36: A ESCALA DE TEMPO (COLUNA "AL") É ARBITRÁRIA
